bitfinex/quotes_SOLUSD_20230103
["timestamp","ask_amount","ask_price","bid_price","bid_amount"]
[1672757899961,113.5672,12.28,12.261,71.6104981]
[1672757900178,113.5672,12.28,12.262,30.0]
[1672757900613,113.5672,12.28,12.263,71.6104981]
[1672757900837,113.5672,12.28,12.27,12.05]
[1672757901012,61.12,12.284,12.27,12.05]
[1672757901352,61.1,12.288,12.271,71.6104981]
[1672757902168,30.0,12.287,12.271,71.6104981]
[1672757902392,61.11,12.286,12.271,71.6104981]
[1672757903018,61.11,12.286,12.262,96.0778]
[1672757903230,12.0,12.28,12.26,12.13]
[1672757903446,61.14,12.279,12.254,32.745036]
[1672757903653,173.8564,12.279,12.254,32.745036]
[1672757904088,30.0,12.278,12.254,32.745036]
[1672757904278,61.15,12.277,12.254,32.745036]
[1672757905026,30.0,12.276,12.254,32.745036]
[1672757905219,61.16,12.275,12.254,32.745036]
[1672757905849,60.4,12.27,12.254,32.745036]
[1672757906066,30.0,12.268,12.254,32.745036]
[1672757906375,61.2,12.267,12.254,32.745036]
[1672757906816,43.9319658,12.255,12.254,32.745036]
[1672757907012,105.1919658,12.255,12.239,30.0]
[1672757907215,61.27,12.254,12.238,23.8104]
[1672757907980,30.0,12.253,12.238,23.8104]
[1672757908189,61.28,12.252,12.238,23.8104]
[1672757908525,30.0,12.253,12.238,23.8104]
[1672757908929,61.28,12.252,12.238,23.8104]
[1672757909468,30.0,12.253,12.238,23.8104]
[1672757909777,61.27,12.254,12.24,12.09]
[1672757909983,30.0,12.253,12.24,12.09]
[1672757910302,43.9319658,12.255,12.24,60.45]
[1672757910518,43.9319658,12.255,12.241,62.1723139]
[1672757910730,61.27,12.254,12.241,62.1723139]
[1672757911343,43.9319658,12.255,12.241,62.1723139]
[1672757911558,61.27,12.254,12.241,62.1723139]
[1672757911769,25.43966354,12.253,12.241,62.1723139]
[1672757911977,30.0,12.254,12.241,62.1723139]
[1672757912507,43.9319658,12.255,12.241,62.1723139]
[1672757912908,30.0,12.254,12.241,62.1723139]
[1672757913756,91.27,12.254,12.231,30.0]
[1672757913961,202.0725,12.254,12.241,32.791046]
[1672757915016,140.8025,12.254,12.241,30.291046]
[1672757915446,61.27,12.253,12.242,67.3723139]
[1672757915655,12.05,12.25,12.242,67.3723139]
[1672757915874,61.29,12.249,12.242,67.3723139]
[1672757916485,61.29,12.249,12.241,0.0033599]
[1672757916806,30.0,12.248,12.241,0.0033599]
[1672757917018,61.3,12.247,12.241,0.0033599]
[1672757917441,30.0,12.248,12.241,0.0033599]
[1672757917641,30.0,12.248,12.242,106.16147847]
[1672757917963,30.0,12.246,12.242,106.16147847]
[1672757918182,30.0,12.251,12.242,106.16147847]
[1672757919011,30.0,12.251,12.24,12.09]
[1672757919228,30.0,12.251,12.23,60.56]
[1672757919445,30.0,12.251,12.241,32.796824]
[1672757919970,30.0,12.249,12.241,94.12848425]
[1672757920187,61.3,12.248,12.241,94.12848425]
[1672757921122,30.0,12.247,12.241,32.796824]
[1672757921333,61.31,12.246,12.241,32.796824]
[1672757921746,61.3,12.248,12.241,32.796824]
[1672757922167,30.0,12.249,12.241,32.796824]
[1672757922378,30.0,12.251,12.241,32.796824]
[1672757922379,91.28,12.251,12.241,32.796824]
[1672757922705,22.9072,12.253,12.241,32.796824]
[1672757923108,61.28,12.252,12.241,32.796824]
[1672757923540,22.9072,12.253,12.242,53.24200773]
[1672757923845,30.0,12.252,12.22,122.44859586]
[1672757924059,61.28,12.251,12.242,53.24200773]
[1672757924698,61.28,12.251,12.23,60.56]
[1672757924910,30.0,12.25,12.231,55.1277004]
[1672757925120,52.9072,12.253,12.24,12.0]
[1672757925320,22.9072,12.253,12.24,12.0]
[1672757925527,187.4206,12.254,12.24,12.0]
[1672757925528,140.8025,12.254,12.242,32.793506]
[1672757926052,140.8025,12.254,12.243,81.3677004]
[1672757926260,110.8025,12.254,12.243,81.3677004]
[1672757926471,110.8025,12.254,12.244,61.3677004]
[1672757926680,110.8025,12.254,12.245,20.0]
[1672757927121,172.0725,12.254,12.245,20.0]
[1672757927317,61.22,12.264,12.245,20.0]
[1672757927525,61.27,12.254,12.245,78.46491722]
[1672757927730,61.22,12.264,12.245,78.46491722]
[1672757927957,30.0,12.263,12.245,78.46491722]
[1672757928151,12.09,12.26,12.245,20.0]
[1672757928484,61.27,12.254,12.245,20.0]
[1672757928699,61.27,12.254,12.246,64.27158388]
[1672757928884,61.24,12.259,12.247,20.0]
[1672757929103,61.27,12.254,12.245,20.0]
[1672757929539,61.27,12.254,12.243,20.0]
[1672757929725,61.24,12.259,12.243,20.0]
[1672757930373,61.23,12.262,12.243,20.0]
[1672757930585,30.0,12.261,12.243,20.0]
[1672757930906,61.24,12.26,12.244,30.0]
[1672757931113,61.24,12.26,12.245,20.0]
[1672757931329,61.27,12.254,12.245,20.0]
[1672757931536,61.24,12.26,12.245,20.0]
[1672757931856,61.27,12.254,12.246,64.27158388]
[1672757932599,61.27,12.254,12.242,32.793506]
[1672757932785,30.0,12.253,12.195,41.58122736]
[1672757932996,61.28,12.252,12.23,60.29]
[1672757933221,61.28,12.252,12.23,12.04]
[1672757933636,61.28,12.252,12.231,20.0]
[1672757933845,30.0,12.251,12.231,20.0]
[1672757934063,61.29,12.25,12.231,20.0]
[1672757934252,73.36,12.25,12.23,44.837625]
[1672757934692,30.0,12.249,12.23,44.837625]
[1672757934886,61.3,12.248,12.23,44.837625]
[1672757935635,61.3,12.248,12.23,32.797625]
[1672757935838,30.0,12.247,12.23,32.797625]
[1672757936051,61.31,12.246,12.231,20.0]
[1672757936256,171.1512,12.246,12.231,20.0]
[1672757936782,30.0,12.245,12.231,20.0]
[1672757936999,30.0,12.245,12.231,82.01825055]
[1672757937213,30.0,12.245,12.231,20.0]
[1672757938044,61.32,12.244,12.231,20.0]
[1672757938273,30.0,12.245,12.231,20.0]
[1672757938797,30.0,12.245,12.231,76.00358388]
[1672757938986,109.8412,12.246,12.231,76.00358388]
[1672757939621,109.8412,12.246,12.232,30.0]
[1672757939827,109.8412,12.246,12.233,20.0]
[1672757940038,30.0,12.249,12.233,20.0]
[1672757940270,30.0,12.249,12.233,76.00358388]
[1672757940473,30.0,12.249,12.233,56.00358388]
[1672757940668,30.0,12.249,12.234,30.0]
[1672757940878,171.2947,12.252,12.234,30.0]
[1672757941093,110.0147,12.252,12.24,12.09]
[1672757941641,110.0147,12.252,12.241,60.85691722]
[1672757941858,61.29,12.25,12.241,60.85691722]
[1672757942065,73.28,12.25,12.23,44.837625]
[1672757942485,73.28,12.25,12.24,0.4085]
[1672757942685,30.0,12.249,12.24,0.4085]
[1672757942898,61.3,12.248,12.24,0.4085]
[1672757943322,30.0,12.247,12.24,0.4085]
[1672757944159,61.31,12.246,12.24,0.4085]
[1672757944368,30.0,12.247,12.24,0.4085]
[1672757945202,61.31,12.246,12.231,20.0]
[1672757945619,30.0,12.247,12.231,20.0]
[1672757946890,61.31,12.246,12.231,20.0]
[1672757947098,110.0147,12.252,12.24,12.09]
[1672757947421,110.0147,12.252,12.241,20.0]
[1672757947628,30.0,12.251,12.241,20.0]
[1672757948043,30.0,12.251,12.231,20.0]
[1672757948257,30.0,12.251,12.238,51.91291722]
[1672757948481,30.0,12.251,12.24,12.09]
[1672757948674,30.0,12.251,12.241,20.0]
[1672757948884,30.0,12.251,12.241,71.91291722]
[1672757949098,30.0,12.251,12.242,54.85958388]
[1672757949311,30.0,12.251,12.243,20.0]
[1672757949722,30.0,12.251,12.244,54.85958388]
[1672757949941,30.0,12.251,12.245,20.0]
[1672757950363,110.0147,12.252,12.245,20.0]
[1672757950562,30.0,12.251,12.246,54.85958388]
[1672757950775,30.0,12.251,12.232,30.0]
[1672757950982,30.0,12.251,12.233,61.09958388]
[1672757950983,61.29,12.25,12.233,61.09958388]
[1672757951207,61.29,12.25,12.234,20.0]
[1672757951635,30.0,12.249,12.235,61.09958388]
[1672757951823,30.0,12.249,12.236,20.0]
[1672757952253,61.3,12.248,12.236,20.0]
[1672757952463,30.0,12.247,12.237,61.09958388]
[1672757952676,61.31,12.246,12.238,20.0]
[1672757952907,30.0,12.247,12.238,20.0]
[1672757953118,61.31,12.246,12.238,20.0]
[1672757953327,61.31,12.246,12.231,20.0]
[1672757953643,109.6639,12.245,12.234,61.09958388]
[1672757953858,109.6639,12.245,12.235,20.0]
[1672757954179,109.6639,12.245,12.236,61.09958388]
[1672757954391,109.6639,12.245,12.237,20.0]
[1672757954790,109.6639,12.245,12.238,61.09958388]
[1672757955002,109.6639,12.245,12.237,20.0]
[1672757955218,109.6639,12.245,12.238,61.09958388]
[1672757955424,109.6639,12.245,12.231,20.0]
[1672757955651,30.0,12.244,12.232,61.09958388]
[1672757955843,61.32,12.243,12.233,20.0]
[1672757956270,109.6639,12.245,12.234,61.09958388]
[1672757956477,30.0,12.244,12.235,20.0]
[1672757956696,61.32,12.244,12.235,20.0]
[1672757956912,109.6639,12.245,12.235,81.09958388]
[1672757957107,43.9319658,12.255,12.245,64.07491493]
[1672757957431,112.1727,12.253,12.237,30.0]
[1672757957653,112.1727,12.253,12.238,20.0]
[1672757957854,112.1727,12.253,12.24,60.45]
[1672757958069,112.1727,12.253,12.242,30.0]
[1672757958265,112.1727,12.253,12.243,20.0]
[1672757958698,112.1727,12.253,12.243,81.18625055]
[1672757958911,112.1727,12.253,12.244,61.18625055]
[1672757959123,112.1727,12.253,12.245,20.0]
[1672757959441,112.1727,12.253,12.246,61.18625055]
[1672757959649,109.6727,12.253,12.247,20.0]
[1672757959958,109.6727,12.253,12.248,61.18625055]
[1672757960176,61.28,12.252,12.248,61.18625055]
[1672757960363,30.0,12.253,12.232,62.6849]
[1672757960572,61.28,12.252,12.233,81.18625055]
[1672757960999,61.28,12.252,12.234,61.18625055]
[1672757961224,61.28,12.252,12.235,20.0]
[1672757961427,30.0,12.251,12.235,20.0]
[1672757961644,61.29,12.25,12.232,20.0]
[1672757961842,61.29,12.25,12.231,30.0]
[1672757962056,61.29,12.25,12.23,44.877625]
[1672757962470,30.0,12.249,12.232,30.0]
[1672757962680,61.3,12.248,12.232,30.0]
[1672757962886,61.3,12.248,12.233,61.18625055]
[1672757963097,61.29,12.25,12.234,50.0]
[1672757963425,61.28,12.252,12.234,50.0]
[1672757963640,61.28,12.252,12.235,61.18625055]
[1672757964184,61.27,12.254,12.235,61.18625055]
[1672757964381,30.0,12.253,12.236,30.0]
[1672757964567,61.28,12.252,12.236,30.0]
[1672757964780,139.8355,12.251,12.237,61.18625055]
[1672757965002,61.29,12.25,12.237,61.18625055]
[1672757965206,61.29,12.25,12.238,20.0]
[1672757965408,30.0,12.249,12.238,20.0]
[1672757965616,61.3,12.248,12.238,81.18625055]
[1672757965945,61.3,12.248,12.238,20.0]
[1672757966143,61.3,12.248,12.23,44.877625]
[1672757966359,30.0,12.247,12.23,32.797625]
[1672757966563,61.31,12.246,12.23,32.797625]
[1672757966996,61.31,12.246,12.231,81.18625055]
[1672757967204,30.0,12.247,12.232,30.0]
[1672757967400,30.0,12.247,12.233,20.0]
[1672757967614,30.0,12.247,12.233,81.18625055]
[1672757967826,30.0,12.247,12.234,61.18625055]
[1672757968036,30.0,12.247,12.235,20.0]
[1672757968477,30.0,12.247,12.236,61.18625055]
[1672757968666,61.31,12.246,12.237,20.0]
[1672757968876,61.31,12.246,12.23,93.98387555]
[1672757969086,61.31,12.246,12.231,20.0]
[1672757969298,30.0,12.245,12.231,20.0]
[1672757969521,61.32,12.244,12.232,61.18625055]
[1672757969729,30.0,12.243,12.233,20.0]
[1672757970147,61.33,12.242,12.233,20.0]
[1672757970677,119.3464,12.244,12.234,61.18625055]
[1672757970888,119.3464,12.244,12.235,20.0]
[1672757971094,61.29,12.25,12.235,20.0]
[1672757971311,119.3464,12.248,12.237,30.0]
[1672757971500,119.3464,12.248,12.238,20.0]
[1672757971711,119.3464,12.248,12.238,81.18625055]
[1672757971933,119.3464,12.248,12.239,61.18625055]
[1672757972256,30.0,12.246,12.23,44.777625]
[1672757972457,30.0,12.246,12.231,61.18625055]
[1672757972670,30.0,12.247,12.232,30.0]
[1672757972882,61.29,12.25,12.232,30.0]
[1672757973199,61.29,12.25,12.23,93.047625]
[1672757973200,73.34,12.25,12.233,61.18625055]
[1672757973511,73.34,12.25,12.23,44.917625]
[1672757973512,30.0,12.249,12.23,32.797625]
[1672757973731,61.3,12.248,12.231,62.18817733]
[1672757973928,30.0,12.247,12.231,62.18817733]
[1672757974135,176.6634,12.246,12.231,62.18817733]
[1672757974343,30.0,12.245,12.231,62.18817733]
[1672757974554,30.0,12.243,12.231,62.18817733]
[1672757975087,61.32,12.244,12.232,20.0]
[1672757975291,30.0,12.243,12.231,62.18817733]
[1672757975492,61.33,12.242,12.231,62.18817733]
[1672757975707,30.0,12.243,12.23,32.797625]
[1672757976134,91.32,12.243,12.23,32.797625]
[1672757976979,91.32,12.243,12.231,50.0]
[1672757977190,91.32,12.244,12.231,50.0]
[1672757977388,115.3534,12.246,12.231,50.0]
[1672757977826,115.3534,12.246,12.232,63.9773323]
[1672757978034,115.3534,12.246,12.233,20.0]
[1672757978224,115.3534,12.246,12.234,30.0]
[1672757978441,115.3534,12.246,12.235,20.0]
[1672757978652,61.28,12.252,12.235,83.9773323]
[1672757978857,173.4522,12.254,12.24,12.09]
[1672757979081,173.4522,12.254,12.241,20.0]
[1672757979288,173.4522,12.254,12.241,83.9773323]
[1672757979485,173.4522,12.254,12.241,20.0]
[1672757979700,173.4522,12.254,12.242,63.9773323]
[1672757979914,173.4522,12.254,12.243,20.0]
[1672757980123,112.1822,12.254,12.243,20.0]
[1672757980336,112.1822,12.254,12.244,99.00399897]
[1672757980549,61.24,12.26,12.246,30.0]
[1672757980762,173.4022,12.264,12.244,9.00399897]
[1672757980979,173.4022,12.264,12.247,69.00399897]
[1672757981184,30.0,12.263,12.247,69.00399897]
[1672757981381,30.0,12.263,12.25,12.0]
[1672757981707,112.1822,12.264,12.251,68.22365239]
[1672757982241,30.0,12.263,12.252,20.0]
[1672757982650,30.0,12.263,12.253,68.22365239]
[1672757982999,30.0,12.263,12.254,20.0]
[1672757983603,112.1822,12.264,12.254,88.22365239]
[1672757985064,30.0,12.263,12.254,88.22365239]
[1672757985598,91.22,12.263,12.254,88.22365239]
[1672757986003,91.22,12.263,12.254,20.0]
[1672757986219,30.0,12.262,12.245,20.0]
[1672757986426,61.23,12.261,12.242,20.0]
[1672757986775,61.23,12.261,12.243,68.22365239]
[1672757986990,30.0,12.26,12.245,30.0]
[1672757987209,30.0,12.26,12.246,20.0]
[1672757987507,30.0,12.26,12.246,88.22365239]
[1672757987721,30.0,12.26,12.244,20.0]
[1672757987930,61.24,12.259,12.243,68.22365239]
[1672757988125,30.0,12.258,12.244,50.0]
[1672757988335,30.0,12.258,12.244,118.22365239]
[1672757988549,30.0,12.26,12.244,118.22365239]
[1672757990649,61.22,12.263,12.244,118.22365239]
[1672757990858,61.21,12.266,12.25,12.09]
[1672757991067,30.0,12.263,12.251,20.0]
[1672757991382,6.58e-05,12.255,12.251,88.22365239]
[1672757991597,6.58e-05,12.255,12.252,68.22365239]
[1672757991813,6.58e-05,12.255,12.253,20.0]
[1672757992343,6.58e-05,12.255,12.254,68.22365239]
[1672757992552,6.58e-05,12.255,12.254,88.22365239]
[1672757997389,61.18,12.272,12.255,30.0]
[1672757997593,61.15,12.278,12.26,60.49]
[1672757997803,61.15,12.278,12.261,30.0]
[1672757997804,30.0,12.277,12.261,30.0]
[1672757998029,61.16,12.276,12.261,30.0]
[1672757998346,61.16,12.276,12.262,68.22365239]
[1672757998762,61.15,12.278,12.262,68.22365239]
[1672757998962,61.11,12.286,12.262,68.22365239]
[1672757999179,30.0,12.285,12.263,50.0]
[1672757999508,61.12,12.284,12.264,68.22365239]
[1672757999815,61.12,12.284,12.265,20.0]
[1672758000007,30.0,12.283,12.266,30.0]
[1672758000213,61.13,12.282,12.267,20.0]
[1672758000641,61.13,12.282,12.266,68.22365239]
[1672758000642,11.99,12.28,12.266,68.22365239]
[1672758000848,178.5011,12.279,12.253,20.0]
[1672758001054,30.0,12.278,12.258,20.0]
[1672758001265,61.15,12.277,12.26,12.09]
[1672758001480,61.15,12.277,12.261,20.0]
[1672758001689,30.0,12.276,12.261,20.0]
[1672758001908,61.16,12.275,12.262,30.0]
[1672758002125,61.16,12.275,12.263,20.0]
[1672758002316,61.16,12.275,12.263,88.22365239]
[1672758002531,117.3611,12.279,12.264,68.22365239]
[1672758002842,61.15,12.278,12.265,20.0]
[1672758003067,61.15,12.278,12.266,30.0]
[1672758003285,61.15,12.278,12.27,12.09]
[1672758003496,61.15,12.278,12.271,20.0]
[1672758003704,61.15,12.278,12.271,88.22365239]
[1672758004116,61.15,12.278,12.272,68.22365239]
[1672758004329,61.15,12.278,12.273,20.0]
[1672758004747,61.15,12.278,12.273,88.22365239]
[1672758005374,117.3611,12.279,12.273,88.22365239]
[1672758005586,61.15,12.278,12.273,88.22365239]
[1672758006000,117.3611,12.279,12.273,88.22365239]
[1672758006966,117.3611,12.279,12.274,30.0]
[1672758007171,117.3611,12.279,12.275,20.0]
[1672758007385,61.1,12.287,12.275,88.22365239]
[1672758007580,118.4291,12.288,12.28,12.09]
[1672758007789,61.07,12.293,12.28,12.09]
[1672758008010,61.07,12.293,12.281,68.22365239]
[1672758008011,30.0,12.291,12.281,68.22365239]
[1672758008221,61.09,12.29,12.282,20.0]
[1672758008641,61.08,12.291,12.283,68.22365239]
[1672758008848,61.08,12.291,12.284,20.0]
[1672758009284,61.08,12.291,12.285,68.22365239]
[1672758009486,118.4291,12.292,12.286,20.0]
[1672758009674,30.0,12.291,12.286,20.0]
[1672758010003,30.0,12.291,12.284,13.93824815]
[1672758010004,30.0,12.289,12.284,13.93824815]
[1672758010220,61.1,12.288,12.284,13.93824815]
[1672758010417,61.1,12.288,12.27,60.56]
[1672758010623,30.0,12.289,12.27,60.56]
[1672758010838,30.0,12.289,12.275,59.44711669]
[1672758011053,61.1,12.288,12.276,20.0]
[1672758011464,61.1,12.288,12.276,79.44711669]
[1672758011677,61.1,12.288,12.262,30.0]
[1672758011678,30.0,12.287,12.262,30.0]
[1672758011894,61.11,12.286,12.262,30.0]
[1672758012105,108.8301,12.285,12.26,79.9447]
[1672758012319,11.98,12.28,12.255,30.0]
[1672758012530,61.14,12.279,12.255,30.0]
[1672758012939,30.0,12.278,12.255,30.0]
[1672758013161,61.15,12.277,12.26,12.09]
[1672758013884,30.0,12.276,12.26,12.09]
[1672758014102,61.16,12.275,12.255,30.0]
[1672758014520,61.16,12.275,12.255,83.99093585]
[1672758014735,30.0,12.274,12.257,83.99093585]
[1672758015062,61.17,12.273,12.25,5.67]
[1672758015381,5.61,12.27,12.248,30.0]
[1672758015569,30.0,12.268,12.248,30.0]
[1672758015780,61.2,12.267,12.248,30.0]
[1672758016006,30.0,12.266,12.248,30.0]
[1672758016217,61.21,12.265,12.248,30.0]
[1672758016430,61.21,12.265,12.25,20.0]
[1672758016740,61.21,12.265,12.25,25.66]
[1672758016962,61.2,12.268,12.251,30.0]
[1672758017270,61.2,12.268,12.252,20.0]
[1672758017463,61.2,12.268,12.251,30.0]
[1672758017675,61.2,12.268,12.252,53.99093585]
[1672758017898,30.0,12.267,12.253,30.0]
[1672758018095,30.0,12.267,12.25,5.66]
[1672758018096,61.21,12.266,12.25,59.65093585]
[1672758018317,61.21,12.266,12.25,53.99093585]
[1672758018723,61.21,12.266,12.251,30.0]
[1672758018932,61.21,12.266,12.252,20.0]
[1672758019146,61.21,12.266,12.252,73.99093585]
[1672758019577,61.21,12.266,12.253,30.0]
[1672758019773,61.21,12.266,12.254,20.0]
[1672758020308,61.2,12.268,12.254,20.0]
[1672758020521,61.2,12.268,12.254,73.99093585]
[1672758020739,30.0,12.267,12.254,20.0]
[1672758020931,61.21,12.266,12.252,20.0]
[1672758021133,61.2,12.268,12.252,20.0]
[1672758021558,117.6795,12.269,12.254,53.99093585]
[1672758021893,117.6795,12.269,12.256,30.0]
[1672758022082,117.6795,12.269,12.257,20.0]
[1672758022296,61.2,12.268,12.257,20.0]
[1672758022639,117.6795,12.269,12.257,76.84415944]
[1672758023241,117.6795,12.269,12.258,30.0]
[1672758023558,117.6795,12.269,12.26,5.66]
[1672758023764,117.6795,12.269,12.262,30.0]
[1672758023990,92.6795,12.269,12.263,20.0]
[1672758024182,61.13,12.282,12.263,79.44711669]
[1672758024413,61.13,12.282,12.264,89.44711669]
[1672758024841,30.0,12.281,12.265,59.44711669]
[1672758025167,61.14,12.28,12.266,20.0]
[1672758025564,61.14,12.28,12.267,59.44711669]
[1672758025880,30.0,12.279,12.266,20.0]
[1672758026106,61.15,12.278,12.266,20.0]
[1672758026317,61.15,12.278,12.259,20.0]
[1672758026523,61.15,12.278,12.254,30.0]
[1672758026731,30.0,12.277,12.254,30.0]
[1672758027059,61.16,12.276,12.254,30.0]
[1672758027250,61.15,12.278,12.254,30.0]
[1672758027894,30.0,12.277,12.254,30.0]
[1672758028109,61.16,12.276,12.259,20.0]
[1672758028733,61.15,12.278,12.26,35.66]
[1672758028925,61.13,12.282,12.26,35.66]
[1672758029147,61.13,12.282,12.261,20.0]
[1672758029566,61.13,12.282,12.261,79.44711669]
[1672758029777,144.6777,12.281,12.262,30.0]
[1672758029988,61.14,12.28,12.263,20.0]
[1672758030198,61.14,12.28,12.261,79.44711669]
[1672758030527,30.0,12.279,12.261,20.0]
[1672758030734,61.15,12.278,12.261,20.0]
[1672758031351,61.14,12.28,12.261,20.0]
[1672758031570,114.6777,12.281,12.262,59.44711669]
[1672758031804,114.6777,12.281,12.263,50.0]
[1672758032208,114.6777,12.281,12.264,59.44711669]
[1672758032416,114.6777,12.281,12.265,20.0]
[1672758032614,30.0,12.28,12.266,30.0]
[1672758032820,114.6777,12.281,12.267,20.0]
[1672758033045,114.6777,12.281,12.267,79.44711669]
[1672758033240,114.6777,12.281,12.268,59.44711669]
[1672758033455,114.6777,12.281,12.269,20.0]
[1672758034823,114.6777,12.281,12.269,79.44711669]
[1672758035358,61.14,12.28,12.269,20.0]
[1672758035587,30.0,12.279,12.264,20.0]
[1672758035768,61.15,12.278,12.264,20.0]
[1672758035969,61.14,12.28,12.264,20.0]
[1672758036180,61.14,12.28,12.265,30.0]
[1672758036387,61.14,12.28,12.266,20.0]
[1672758037653,30.0,12.279,12.264,20.0]
[1672758037863,61.15,12.278,12.264,20.0]
[1672758038081,61.15,12.278,12.263,20.0]
[1672758038305,61.15,12.278,12.254,30.0]
[1672758038508,30.0,12.277,12.254,30.0]
[1672758038724,61.16,12.276,12.254,30.0]
[1672758038915,30.0,12.275,12.254,30.0]
[1672758039125,175.9224,12.274,12.254,30.0]
[1672758039563,30.0,12.273,12.254,30.0]
[1672758039859,61.18,12.272,12.254,30.0]
[1672758040504,61.18,12.272,12.255,20.0]
[1672758040925,61.17,12.273,12.255,20.0]
[1672758041754,61.17,12.273,12.255,79.44711669]
[1672758041962,61.17,12.273,12.256,30.0]
[1672758042185,5.65,12.29,12.26,5.64]
[1672758042393,114.2574,12.284,12.261,20.0]
[1672758042609,30.0,12.283,12.262,30.0]
[1672758042907,30.0,12.283,12.263,20.0]
[1672758042908,30.0,12.281,12.263,20.0]
[1672758043113,61.14,12.28,12.263,79.44711669]
[1672758043324,61.14,12.28,12.264,89.44711669]
[1672758043538,61.14,12.28,12.265,20.0]
[1672758043753,61.14,12.28,12.265,79.44711669]
[1672758043979,61.14,12.28,12.266,59.44711669]
[1672758044189,61.14,12.28,12.267,20.0]
[1672758044505,30.0,12.279,12.267,20.0]
[1672758044698,61.15,12.278,12.267,20.0]
[1672758044907,61.14,12.28,12.267,20.0]
[1672758045329,61.14,12.28,12.264,59.44711669]
[1672758045547,61.14,12.28,12.266,30.0]
[1672758045967,61.14,12.28,12.268,30.0]
[1672758046177,61.13,12.282,12.269,20.0]
[1672758046384,114.2574,12.284,12.271,30.0]
[1672758046597,5.68,12.3,12.272,20.0]
[1672758046921,114.8703,12.29,12.273,30.0]
[1672758047118,61.09,12.289,12.274,20.0]
[1672758047330,61.09,12.289,12.274,79.44711669]
[1672758047540,30.0,12.288,12.274,79.44711669]
[1672758047962,61.1,12.287,12.274,20.0]
[1672758048290,61.1,12.287,12.265,20.0]
[1672758048483,30.0,12.286,12.26,5.72]
[1672758048689,30.0,12.284,12.266,30.0]
[1672758049022,61.12,12.283,12.266,30.0]
[1672758049234,61.1,12.287,12.27,5.61]
[1672758049447,30.0,12.286,12.27,5.61]
[1672758049662,61.11,12.285,12.27,5.61]
[1672758049877,61.1,12.288,12.271,20.0]
[1672758050064,61.09,12.289,12.271,20.0]
[1672758051110,61.09,12.289,12.272,59.44711669]
[1672758051444,61.09,12.289,12.274,30.0]
[1672758051630,61.09,12.289,12.275,20.0]
[1672758052280,114.8703,12.29,12.275,20.0]
[1672758052496,114.8703,12.29,12.276,30.0]
[1672758052682,114.8703,12.29,12.275,79.44711669]